[Event "Early-Titled-Tuesday-Blitz-March-05-2024"]
[Site "Chess.com"]
[Date "2024.03.05"]
[Round "6"]
[White "thesupera12"]
[Black "Evgeny81"]
[Result "0-1"]
[WhiteElo "2489"]
[BlackElo "2776"]
[TimeControl "180+1"]
[EndTime "9:05:20 PST"]
[Termination "Evgeny81 won by resignation"]

1. d4 {[%clk 0:03:00.9]} 1... c5 {[%clk 0:02:58]} 2. Nf3 {[%clk 0:02:56.9]} 2...
cxd4 {[%clk 0:02:57.5]} 3. Nxd4 {[%clk 0:02:55.7]} 3... g6 {[%clk 0:02:57.6]} 4.
g3 {[%clk 0:02:55.9]} 4... Bg7 {[%clk 0:02:58.1]} 5. Bg2 {[%clk 0:02:56.5]} 5...
Nc6 {[%clk 0:02:58.8]} 6. Nxc6 {[%clk 0:02:55.7]} 6... bxc6 {[%clk 0:02:58.6]}
7. O-O {[%clk 0:02:56.2]} 7... Rb8 {[%clk 0:02:56.6]} 8. c3 {[%clk 0:02:54.7]}
8... Nf6 {[%clk 0:02:55.1]} 9. Qc2 {[%clk 0:02:53.6]} 9... O-O {[%clk
0:02:53.4]} 10. Bf4 {[%clk 0:02:53.5]} 10... d6 {[%clk 0:02:51]} 11. Nd2 {[%clk
0:02:54]} 11... h6 {[%clk 0:02:42.7]} 12. Nb3 {[%clk 0:02:41.2]} 12... Qb6
{[%clk 0:02:38.6]} 13. Rab1 {[%clk 0:02:27.4]} 13... a5 {[%clk 0:02:35.7]} 14.
e4 {[%clk 0:02:23]} 14... a4 {[%clk 0:02:32.7]} 15. Nd2 {[%clk 0:02:21.1]} 15...
Ba6 {[%clk 0:02:27]} 16. Rfe1 {[%clk 0:02:15.5]} 16... Ng4 {[%clk 0:02:25.4]}
17. Nf1 {[%clk 0:02:05.3]} 17... Bd3 {[%clk 0:02:12.7]} 18. Qxd3 {[%clk
0:01:57.6]} 18... Qxf2+ {[%clk 0:02:12.7]} 19. Kh1 {[%clk 0:01:58.1]} 19... Qxe1
{[%clk 0:02:13.4]} 20. Rxe1 {[%clk 0:01:55.5]} 20... Nf2+ {[%clk 0:02:13.3]} 21.
Kg1 {[%clk 0:01:56.3]} 21... Nxd3 {[%clk 0:02:13.2]} 22. Rd1 {[%clk 0:01:56.3]}
22... Nxf4 {[%clk 0:02:12.4]} 23. gxf4 {[%clk 0:01:55.4]} 23... Rxb2 {[%clk
0:02:12.4]} 24. e5 {[%clk 0:01:45.7]} 24... dxe5 {[%clk 0:02:11.1]} 25. Bxc6
{[%clk 0:01:46.4]} 25... a3 {[%clk 0:02:07.2]} 26. fxe5 {[%clk 0:01:44.8]} 26...
Bxe5 {[%clk 0:02:06.6]} 27. Bd5 {[%clk 0:01:45.1]} 27... e6 {[%clk 0:02:04.9]}
28. Bb3 {[%clk 0:01:44.8]} 28... Rxb3 {[%clk 0:02:04.5]} 29. axb3 {[%clk
0:01:44.3]} 29... Bxc3 {[%clk 0:02:04.7]} 0-1

[Event "Early-Titled-Tuesday-Blitz-March-05-2024"]
[Site "Chess.com"]
[Date "2024.03.05"]
[Round "6"]
[White "Capiberibe"]
[Black "GAusal"]
[Result "1-0"]
[WhiteElo "2019"]
[BlackElo "2292"]
[TimeControl "180+1"]
[EndTime "9:05:22 PST"]
[Termination "Capiberibe won by resignation"]

1. e4 {[%clk 0:02:31.5]} 1... c5 {[%clk 0:02:56.8]} 2. Nf3 {[%clk 0:02:29.8]}
2... e6 {[%clk 0:02:56.8]} 3. d4 {[%clk 0:02:30.2]} 3... cxd4 {[%clk 0:02:56.1]}
4. Nxd4 {[%clk 0:02:30.8]} 4... a6 {[%clk 0:02:56.4]} 5. Nc3 {[%clk 0:02:27.1]}
5... Nc6 {[%clk 0:02:56.3]} 6. Be3 {[%clk 0:02:25.9]} 6... Bb4 {[%clk
0:02:55.3]} 7. Be2 {[%clk 0:02:25.7]} 7... Nf6 {[%clk 0:02:54.8]} 8. O-O {[%clk
0:02:23.8]} 8... Bxc3 {[%clk 0:02:54.3]} 9. bxc3 {[%clk 0:02:22.5]} 9... Nxe4
{[%clk 0:02:53.9]} 10. Bd3 {[%clk 0:02:22.2]} 10... Nf6 {[%clk 0:02:52.1]} 11.
Re1 {[%clk 0:02:06.2]} 11... O-O {[%clk 0:02:49.8]} 12. Bg5 {[%clk 0:02:06.1]}
12... h6 {[%clk 0:02:47.5]} 13. Bh4 {[%clk 0:02:05.8]} 13... d6 {[%clk
0:02:40.1]} 14. Re3 {[%clk 0:02:05.4]} 14... e5 {[%clk 0:02:39.8]} 15. Nf5
{[%clk 0:01:57.5]} 15... Bxf5 {[%clk 0:02:38.1]} 16. Bxf5 {[%clk 0:01:56.2]}
16... Na5 {[%clk 0:02:25.5]} 17. Rf3 {[%clk 0:01:56.1]} 17... Nc4 {[%clk
0:02:10.5]} 18. Bxf6 {[%clk 0:01:51.9]} 18... gxf6 {[%clk 0:02:08.4]} 19. Rg3+
{[%clk 0:01:48.3]} 19... Kh8 {[%clk 0:02:07.6]} 20. Qh5 {[%clk 0:01:45.2]} 1-0

[Event "Early-Titled-Tuesday-Blitz-March-05-2024"]
[Site "Chess.com"]
[Date "2024.03.05"]
[Round "6"]
[White "Szachulec75"]
[Black "Misterfox120"]
[Result "1-0"]
[WhiteElo "2243"]
[BlackElo "2457"]
[TimeControl "180+1"]
[EndTime "9:05:33 PST"]
[Termination "Szachulec75 won by resignation"]

1. Nf3 {[%clk 0:03:00.9]} 1... c5 {[%clk 0:02:58.5]} 2. g3 {[%clk 0:02:59.6]}
2... Nc6 {[%clk 0:02:47.7]} 3. Bg2 {[%clk 0:03:00.2]} 3... g6 {[%clk 0:02:47]}
4. d3 {[%clk 0:03:01.1]} 4... Bg7 {[%clk 0:02:47.3]} 5. O-O {[%clk 0:03:01.2]}
5... d5 {[%clk 0:02:48]} 6. Nbd2 {[%clk 0:03:00.2]} 6... e5 {[%clk 0:02:48.4]}
7. e4 {[%clk 0:02:58.4]} 7... Nge7 {[%clk 0:02:42.8]} 8. Re1 {[%clk 0:02:56.9]}
8... O-O {[%clk 0:02:26.5]} 9. exd5 {[%clk 0:02:56]} 9... Nxd5 {[%clk
0:02:27.4]} 10. c3 {[%clk 0:02:55.2]} 10... h6 {[%clk 0:02:23.7]} 11. a4 {[%clk
0:02:54.4]} 11... Be6 {[%clk 0:02:21.7]} 12. Nc4 {[%clk 0:02:54.6]} 12... Qc7
{[%clk 0:02:19]} 13. Bd2 {[%clk 0:02:54.9]} 13... a6 {[%clk 0:02:17.5]} 14. Qc1
{[%clk 0:02:55.1]} 14... b5 {[%clk 0:02:15]} 15. axb5 {[%clk 0:02:45.6]} 15...
axb5 {[%clk 0:02:15.9]} 16. Rxa8 {[%clk 0:02:44.9]} 16... Rxa8 {[%clk
0:02:13.9]} 17. Na3 {[%clk 0:02:44.9]} 17... b4 {[%clk 0:02:04]} 18. Nc4 {[%clk
0:02:42.2]} 18... Kh7 {[%clk 0:01:58.4]} 19. Re4 {[%clk 0:02:41.8]} 19... bxc3
{[%clk 0:01:34]} 20. bxc3 {[%clk 0:02:39.1]} 20... Nde7 {[%clk 0:01:13.4]} 21.
Rh4 {[%clk 0:02:33]} 21... Nf5 {[%clk 0:01:13.5]} 22. Ng5+ {[%clk 0:02:32.4]}
22... Kg8 {[%clk 0:01:05.8]} 23. Nxe6 {[%clk 0:02:32.8]} 23... fxe6 {[%clk
0:01:06.4]} 24. Rg4 {[%clk 0:02:24.1]} 24... Nce7 {[%clk 0:01:00.8]} 25. Bxa8
{[%clk 0:02:20.8]} 1-0

[Event "Early-Titled-Tuesday-Blitz-March-05-2024"]
[Site "Chess.com"]
[Date "2024.03.05"]
[Round "6"]
[White "Kielinkei"]
[Black "Joachim100x"]
[Result "0-1"]
[WhiteElo "2585"]
[BlackElo "2495"]
[TimeControl "180+1"]
[EndTime "9:05:36 PST"]
[Termination "Joachim100x won by resignation"]

1. c4 {[%clk 0:03:00.9]} 1... e6 {[%clk 0:02:59.6]} 2. g3 {[%clk 0:03:01]} 2...
d5 {[%clk 0:02:59.4]} 3. Bg2 {[%clk 0:03:01.7]} 3... Nf6 {[%clk 0:02:58.2]} 4.
Nf3 {[%clk 0:03:02.1]} 4... Be7 {[%clk 0:02:58]} 5. O-O {[%clk 0:03:02.8]} 5...
O-O {[%clk 0:02:58.4]} 6. b3 {[%clk 0:03:03.5]} 6... c5 {[%clk 0:02:58.7]} 7.
cxd5 {[%clk 0:02:57.2]} 7... exd5 {[%clk 0:02:55.6]} 8. d4 {[%clk 0:02:55.5]}
8... Nc6 {[%clk 0:02:55.8]} 9. Bb2 {[%clk 0:02:55.5]} 9... Be6 {[%clk
0:02:55.8]} 10. Nc3 {[%clk 0:02:49.1]} 10... Rc8 {[%clk 0:02:54.7]} 11. dxc5
{[%clk 0:02:45.4]} 11... Bxc5 {[%clk 0:02:54.6]} 12. Nb5 {[%clk 0:02:44.7]}
12... Ne4 {[%clk 0:02:53]} 13. Nbd4 {[%clk 0:02:43.4]} 13... Nxd4 {[%clk
0:02:52.9]} 14. Nxd4 {[%clk 0:02:42]} 14... Qb6 {[%clk 0:02:52.9]} 15. Rc1
{[%clk 0:02:35]} 15... Rfd8 {[%clk 0:02:42.1]} 16. e3 {[%clk 0:02:27.4]} 16...
a6 {[%clk 0:02:40.9]} 17. a3 {[%clk 0:02:24.9]} 17... h6 {[%clk 0:02:39.4]} 18.
b4 {[%clk 0:02:23.1]} 18... Be7 {[%clk 0:02:39]} 19. Qe2 {[%clk 0:02:12.1]}
19... Bf6 {[%clk 0:02:36.1]} 20. Nxe6 {[%clk 0:02:00.4]} 20... Qxe6 {[%clk
0:02:35.5]} 21. Bxf6 {[%clk 0:01:59]} 21... Qxf6 {[%clk 0:02:34.7]} 22. Qd3
{[%clk 0:01:46.3]} 22... Rxc1 {[%clk 0:02:31]} 23. Rxc1 {[%clk 0:01:44.4]} 23...
Qxf2+ {[%clk 0:02:30.8]} 24. Kh1 {[%clk 0:01:45]} 24... Qb2 {[%clk 0:02:29.3]}
25. Rc2 {[%clk 0:01:30.6]} 25... Nf2+ {[%clk 0:02:26]} 26. Rxf2 {[%clk 0:01:31]}
26... Qxf2 {[%clk 0:02:25.6]} 27. a4 {[%clk 0:01:17.4]} 27... Qe1+ {[%clk
0:02:21.1]} 28. Bf1 {[%clk 0:01:17.6]} 28... Qxb4 {[%clk 0:02:20.9]} 29. Be2
{[%clk 0:01:15]} 29... Qe4+ {[%clk 0:02:19.9]} 0-1

[Event "Early-Titled-Tuesday-Blitz-March-05-2024"]
[Site "Chess.com"]
[Date "2024.03.05"]
[Round "6"]
[White "xasid81"]
[Black "JoliyRoger"]
[Result "1-0"]
[WhiteElo "2571"]
[BlackElo "2420"]
[TimeControl "180+1"]
[EndTime "9:05:59 PST"]
[Termination "xasid81 won by resignation"]

1. c4 {[%clk 0:03:00.9]} 1... c5 {[%clk 0:02:54.5]} 2. Nf3 {[%clk 0:02:59.4]}
2... Nf6 {[%clk 0:02:53.4]} 3. Nc3 {[%clk 0:02:58.9]} 3... e6 {[%clk 0:02:53.7]}
4. g3 {[%clk 0:02:58.7]} 4... Nc6 {[%clk 0:02:53.4]} 5. Bg2 {[%clk 0:02:58.4]}
5... Be7 {[%clk 0:02:46.9]} 6. O-O {[%clk 0:02:58.5]} 6... O-O {[%clk
0:02:47.2]} 7. b3 {[%clk 0:02:56.3]} 7... a6 {[%clk 0:02:45.9]} 8. Bb2 {[%clk
0:02:55.3]} 8... Qc7 {[%clk 0:02:46.2]} 9. d4 {[%clk 0:02:55.4]} 9... cxd4
{[%clk 0:02:47]} 10. Nxd4 {[%clk 0:02:56.2]} 10... Ne5 {[%clk 0:02:47.4]} 11.
Rc1 {[%clk 0:02:55.1]} 11... d6 {[%clk 0:02:47]} 12. e4 {[%clk 0:02:53.8]} 12...
Rb8 {[%clk 0:02:45.6]} 13. f4 {[%clk 0:02:54.3]} 13... Ng6 {[%clk 0:02:46]} 14.
f5 {[%clk 0:02:53.1]} 14... Ne5 {[%clk 0:02:45.8]} 15. fxe6 {[%clk 0:02:53.2]}
15... fxe6 {[%clk 0:02:42.5]} 16. Bh3 {[%clk 0:02:53.3]} 16... Qb6 {[%clk
0:00:46.4]} 17. Kh1 {[%clk 0:02:49]} 17... d5 {[%clk 0:00:15.5]} 18. Na4 {[%clk
0:02:46.2]} 18... Qa7 {[%clk 0:00:07.7]} 19. Nxe6 {[%clk 0:02:43.6]} 19... dxe4
{[%clk 0:00:05.8]} 20. Bxe5 {[%clk 0:02:41.9]} 1-0

[Event "Early-Titled-Tuesday-Blitz-March-05-2024"]
[Site "Chess.com"]
[Date "2024.03.05"]
[Round "6"]
[White "Iball95"]
[Black "jk13"]
[Result "1-0"]
[WhiteElo "2907"]
[BlackElo "2695"]
[TimeControl "180+1"]
[EndTime "9:06:13 PST"]
[Termination "Iball95 won by resignation"]

1. e4 {[%clk 0:02:59]} 1... e5 {[%clk 0:03:00]} 2. Nf3 {[%clk 0:02:59.2]} 2...
Nc6 {[%clk 0:03:00.8]} 3. Nc3 {[%clk 0:02:59.9]} 3... Nf6 {[%clk 0:03:00.7]} 4.
Bb5 {[%clk 0:03:00.5]} 4... Bd6 {[%clk 0:03:00.8]} 5. a3 {[%clk 0:03:00.7]} 5...
Ne7 {[%clk 0:02:56.4]} 6. d4 {[%clk 0:02:59.6]} 6... Ng6 {[%clk 0:02:55.7]} 7.
h4 {[%clk 0:02:59.6]} 7... exd4 {[%clk 0:02:08.5]} 8. Qxd4 {[%clk 0:03:00.5]}
8... Qe7 {[%clk 0:02:08.7]} 9. h5 {[%clk 0:02:23.4]} 9... Ne5 {[%clk 0:02:07.1]}
10. h6 {[%clk 0:02:23.8]} 10... g6 {[%clk 0:01:58.2]} 11. Bg5 {[%clk 0:02:20.7]}
11... c6 {[%clk 0:01:55.6]} 12. Be2 {[%clk 0:02:05]} 12... Nxf3+ {[%clk
0:01:54.2]} 13. gxf3 {[%clk 0:02:05.9]} 13... Be5 {[%clk 0:01:54.9]} 14. Qe3
{[%clk 0:02:02.5]} 14... d6 {[%clk 0:01:46.8]} 15. f4 {[%clk 0:01:44.6]} 15...
Bxc3+ {[%clk 0:01:30.2]} 16. Qxc3 {[%clk 0:01:45.5]} 16... Qxe4 {[%clk
0:01:30.6]} 17. Qxf6 {[%clk 0:01:46]} 17... Bg4 {[%clk 0:01:17.9]} 18. O-O-O
{[%clk 0:01:36.3]} 18... Bxe2 {[%clk 0:01:13.5]} 19. Qxh8+ {[%clk 0:01:22.2]}
19... Kd7 {[%clk 0:01:14]} 20. Qxa8 {[%clk 0:01:22.7]} 20... Bxd1 {[%clk
0:01:14.5]} 21. Rxd1 {[%clk 0:01:23]} 1-0

[Event "Early-Titled-Tuesday-Blitz-March-05-2024"]
[Site "Chess.com"]
[Date "2024.03.05"]
[Round "6"]
[White "AlexandraSamaganova"]
[Black "maurovargas01"]
[Result "1-0"]
[WhiteElo "2297"]
[BlackElo "1843"]
[TimeControl "180+1"]
[EndTime "9:06:13 PST"]
[Termination "AlexandraSamaganova won by resignation"]

1. c4 {[%clk 0:03:00.9]} 1... e5 {[%clk 0:02:56.8]} 2. Nc3 {[%clk 0:03:00.6]}
2... Nc6 {[%clk 0:02:57.7]} 3. g3 {[%clk 0:02:59.8]} 3... f5 {[%clk 0:02:58.6]}
4. Bg2 {[%clk 0:03:00]} 4... Nf6 {[%clk 0:02:59.5]} 5. e3 {[%clk 0:03:00.5]}
5... Bb4 {[%clk 0:02:59.9]} 6. Nge2 {[%clk 0:03:00.7]} 6... e4 {[%clk 0:02:57]}
7. d3 {[%clk 0:02:49.6]} 7... Ne5 {[%clk 0:02:50.5]} 8. dxe4 {[%clk 0:02:44.1]}
8... fxe4 {[%clk 0:02:49.7]} 9. O-O {[%clk 0:02:37.8]} 9... Nf3+ {[%clk
0:02:45]} 10. Kh1 {[%clk 0:02:35.2]} 10... Bxc3 {[%clk 0:02:36.9]} 11. Nxc3
{[%clk 0:02:32.6]} 11... Qe7 {[%clk 0:02:36.7]} 12. Nxe4 {[%clk 0:01:37.4]}
12... Nxh2 {[%clk 0:01:59]} 13. Nxf6+ {[%clk 0:01:33.2]} 13... Qxf6 {[%clk
0:01:53.1]} 14. Kxh2 {[%clk 0:01:30.6]} 14... Qh6+ {[%clk 0:01:53.1]} 15. Kg1
{[%clk 0:01:29.9]} 15... O-O {[%clk 0:01:54]} 16. e4 {[%clk 0:01:25.4]} 16... d6
{[%clk 0:01:53.7]} 17. Bxh6 {[%clk 0:01:24.6]} 17... gxh6 {[%clk 0:01:53.9]} 18.
Qh5 {[%clk 0:01:18.4]} 18... Kg7 {[%clk 0:01:48]} 19. f4 {[%clk 0:01:11.2]}
19... Bd7 {[%clk 0:01:43.2]} 20. f5 {[%clk 0:01:11.2]} 20... Bc6 {[%clk
0:01:42.8]} 21. f6+ {[%clk 0:01:08.6]} 21... Rxf6 {[%clk 0:01:41.9]} 22. Rxf6
{[%clk 0:01:08]} 22... Kxf6 {[%clk 0:01:42.8]} 23. Rf1+ {[%clk 0:01:07.4]} 23...
Kg7 {[%clk 0:01:41.9]} 24. Qf7+ {[%clk 0:01:04.3]} 1-0

[Event "Early-Titled-Tuesday-Blitz-March-05-2024"]
[Site "Chess.com"]
[Date "2024.03.05"]
[Round "6"]
[White "LaPiToB"]
[Black "2KTNGO"]
[Result "0-1"]
[WhiteElo "2272"]
[BlackElo "2505"]
[TimeControl "180+1"]
[EndTime "9:06:26 PST"]
[Termination "2KTNGO won by resignation"]

1. d4 {[%clk 0:03:00.9]} 1... Nf6 {[%clk 0:02:59]} 2. c4 {[%clk 0:03:00.5]} 2...
Nc6 {[%clk 0:02:57.9]} 3. e3 {[%clk 0:02:59.6]} 3... e5 {[%clk 0:02:57.3]} 4. d5
{[%clk 0:02:59]} 4... Ne7 {[%clk 0:02:56.8]} 5. Nf3 {[%clk 0:02:57.4]} 5... Ng6
{[%clk 0:02:56.4]} 6. Nc3 {[%clk 0:02:56.5]} 6... Bb4 {[%clk 0:02:53.2]} 7. Qb3
{[%clk 0:02:55.3]} 7... a5 {[%clk 0:02:52]} 8. a3 {[%clk 0:02:18.5]} 8... Bxc3+
{[%clk 0:02:51.3]} 9. Qxc3 {[%clk 0:02:17.6]} 9... Ne4 {[%clk 0:02:51.9]} 10.
Qc2 {[%clk 0:02:16.2]} 10... Nc5 {[%clk 0:02:51.4]} 11. Bd2 {[%clk 0:02:13.1]}
11... a4 {[%clk 0:02:48.2]} 12. Rd1 {[%clk 0:02:07.2]} 12... d6 {[%clk 0:02:47]}
13. h4 {[%clk 0:02:06]} 13... h5 {[%clk 0:02:26.9]} 14. Ng5 {[%clk 0:02:02.4]}
14... Qe7 {[%clk 0:02:22.8]} 15. Be2 {[%clk 0:01:46.4]} 15... Nxh4 {[%clk
0:02:17.9]} 16. Nxf7 {[%clk 0:01:26.7]} 16... Kxf7 {[%clk 0:02:09.8]} 17. g3
{[%clk 0:01:15.1]} 17... Bf5 {[%clk 0:02:05.2]} 18. Qc3 {[%clk 0:01:01.9]} 18...
Ng6 {[%clk 0:01:58.6]} 19. Rxh5 {[%clk 0:00:57.7]} 19... Rxh5 {[%clk 0:01:56.9]}
20. Bxh5 {[%clk 0:00:57.7]} 20... Qg5 {[%clk 0:01:55.9]} 21. Bxg6+ {[%clk
0:00:55.2]} 21... Qxg6 {[%clk 0:01:55.3]} 22. Bc1 {[%clk 0:00:42.8]} 22... Rh8
{[%clk 0:01:50.6]} 0-1

[Event "Early-Titled-Tuesday-Blitz-March-05-2024"]
[Site "Chess.com"]
[Date "2024.03.05"]
[Round "6"]
[White "dosto07"]
[Black "Byniolus"]
[Result "0-1"]
[WhiteElo "2558"]
[BlackElo "2807"]
[TimeControl "180+1"]
[EndTime "9:06:37 PST"]
[Termination "Byniolus won by resignation"]

1. e4 {[%clk 0:03:00.9]} 1... d6 {[%clk 0:02:58.8]} 2. d4 {[%clk 0:03:00.6]}
2... Nf6 {[%clk 0:02:59.7]} 3. Nc3 {[%clk 0:03:00.9]} 3... c6 {[%clk 0:03:00]}
4. Nf3 {[%clk 0:03:00.5]} 4... Bg4 {[%clk 0:02:59.5]} 5. Be2 {[%clk 0:02:57.8]}
5... e6 {[%clk 0:02:59.9]} 6. e5 {[%clk 0:02:48.5]} 6... dxe5 {[%clk 0:02:55.9]}
7. Nxe5 {[%clk 0:02:48.6]} 7... Bxe2 {[%clk 0:02:56.8]} 8. Qxe2 {[%clk
0:02:39.3]} 8... Qxd4 {[%clk 0:02:53.3]} 9. O-O {[%clk 0:02:39]} 9... Nbd7
{[%clk 0:02:48.9]} 10. Nc4 {[%clk 0:02:25.4]} 10... Nb6 {[%clk 0:02:17.3]} 11.
Na5 {[%clk 0:02:10.4]} 11... O-O-O {[%clk 0:02:16.1]} 12. Rd1 {[%clk 0:01:47.2]}
12... Qb4 {[%clk 0:02:04.2]} 13. Rxd8+ {[%clk 0:01:46.4]} 13... Kxd8 {[%clk
0:02:05.1]} 14. Nxb7+ {[%clk 0:01:37.3]} 14... Kc7 {[%clk 0:01:48.2]} 15. Qa6
{[%clk 0:01:19.4]} 15... Be7 {[%clk 0:01:31.5]} 16. a3 {[%clk 0:01:12.8]} 16...
Qc4 {[%clk 0:01:27.9]} 17. Qxa7 {[%clk 0:01:10.8]} 17... Ra8 {[%clk 0:01:24.9]}
18. Na5+ {[%clk 0:00:58.4]} 18... Rxa7 {[%clk 0:01:24.3]} 19. Nxc4 {[%clk
0:00:58.2]} 19... Nxc4 {[%clk 0:01:25.2]} 20. a4 {[%clk 0:00:56.4]} 20... Bb4
{[%clk 0:01:17.7]} 21. Ne4 {[%clk 0:00:52.9]} 21... Nxe4 {[%clk 0:01:17.3]} 0-1

[Event "Early-Titled-Tuesday-Blitz-March-05-2024"]
[Site "Chess.com"]
[Date "2024.03.05"]
[Round "6"]
[White "Kotofeyca"]
[Black "SaqoChess_Twitch"]
[Result "0-1"]
[WhiteElo "2453"]
[BlackElo "2588"]
[TimeControl "180+1"]
[EndTime "9:06:42 PST"]
[Termination "SaqoChess_Twitch won by resignation"]

1. d4 {[%clk 0:03:00.9]} 1... d5 {[%clk 0:02:59.8]} 2. c4 {[%clk 0:03:00.8]}
2... e6 {[%clk 0:03:00.5]} 3. Nc3 {[%clk 0:03:00.9]} 3... Nf6 {[%clk 0:03:01.3]}
4. cxd5 {[%clk 0:03:01]} 4... Nxd5 {[%clk 0:03:00.7]} 5. g3 {[%clk 0:03:00.6]}
5... Nxc3 {[%clk 0:03:01]} 6. bxc3 {[%clk 0:03:01.3]} 6... c5 {[%clk 0:03:01.4]}
7. Nf3 {[%clk 0:02:56.1]} 7... cxd4 {[%clk 0:03:01.9]} 8. cxd4 {[%clk
0:02:56.3]} 8... Bb4+ {[%clk 0:03:01.8]} 9. Bd2 {[%clk 0:02:56.6]} 9... Bxd2+
{[%clk 0:03:01.9]} 10. Qxd2 {[%clk 0:02:57.5]} 10... O-O {[%clk 0:03:02.5]} 11.
Bg2 {[%clk 0:02:57.9]} 11... Nc6 {[%clk 0:03:02.2]} 12. O-O {[%clk 0:02:57.2]}
12... Bd7 {[%clk 0:02:59]} 13. Rfd1 {[%clk 0:02:49.9]} 13... Qe7 {[%clk
0:02:57.8]} 14. Rab1 {[%clk 0:02:41.5]} 14... b6 {[%clk 0:02:57.1]} 15. Ne5
{[%clk 0:02:32.5]} 15... Rac8 {[%clk 0:02:55.2]} 16. Nxd7 {[%clk 0:02:18.3]}
16... Qxd7 {[%clk 0:02:54.8]} 17. e4 {[%clk 0:02:01.3]} 17... Rfd8 {[%clk
0:02:53.2]} 18. d5 {[%clk 0:02:01.7]} 18... exd5 {[%clk 0:02:52.2]} 19. exd5
{[%clk 0:02:02.3]} 19... Na5 {[%clk 0:02:51.4]} 20. Rbc1 {[%clk 0:01:43.1]}
20... g6 {[%clk 0:02:50.7]} 21. Rxc8 {[%clk 0:01:42]} 21... Rxc8 {[%clk
0:02:50.7]} 22. h4 {[%clk 0:01:21.2]} 22... h5 {[%clk 0:02:46.5]} 23. Kh2 {[%clk
0:01:21.1]} 23... Rd8 {[%clk 0:02:42.5]} 24. Qd4 {[%clk 0:01:16.6]} 24... Qd6
{[%clk 0:02:41.9]} 25. Re1 {[%clk 0:01:14.1]} 25... Nb7 {[%clk 0:02:40.3]} 26.
Re5 {[%clk 0:01:09.9]} 26... Nc5 {[%clk 0:02:40]} 27. Qe3 {[%clk 0:01:09.5]}
27... Kg7 {[%clk 0:02:37.5]} 28. Re7 {[%clk 0:00:58.7]} 28... Rd7 {[%clk
0:02:37.8]} 29. Re8 {[%clk 0:00:54.3]} 29... Qf6 {[%clk 0:02:36.1]} 30. Ra8
{[%clk 0:00:43.5]} 30... Re7 {[%clk 0:02:32.1]} 31. Qd2 {[%clk 0:00:39.5]} 31...
Ne4 {[%clk 0:02:17]} 32. Kg1 {[%clk 0:00:16.9]} 32... Nxd2 {[%clk 0:02:16.1]}
0-1

[Event "Early-Titled-Tuesday-Blitz-March-05-2024"]
[Site "Chess.com"]
[Date "2024.03.05"]
[Round "6"]
[White "Lennis93"]
[Black "Eliwood44"]
[Result "1-0"]
[WhiteElo "2708"]
[BlackElo "2508"]
[TimeControl "180+1"]
[EndTime "9:06:47 PST"]
[Termination "Lennis93 won by resignation"]

1. a3 {[%clk 0:03:00.9]} 1... e5 {[%clk 0:02:53.3]} 2. c4 {[%clk 0:02:59.5]}
2... Nf6 {[%clk 0:02:52.1]} 3. Nc3 {[%clk 0:02:59.6]} 3... c6 {[%clk 0:02:49.8]}
4. d4 {[%clk 0:02:56.2]} 4... e4 {[%clk 0:02:48.5]} 5. d5 {[%clk 0:02:54.9]}
5... Bd6 {[%clk 0:02:42.1]} 6. Bg5 {[%clk 0:02:53.1]} 6... Be5 {[%clk
0:02:38.1]} 7. e3 {[%clk 0:02:52.5]} 7... Qa5 {[%clk 0:02:16.6]} 8. Ne2 {[%clk
0:02:48]} 8... Na6 {[%clk 0:02:14.7]} 9. b4 {[%clk 0:02:42.4]} 9... Qc7 {[%clk
0:02:13.9]} 10. Bxf6 {[%clk 0:02:39.2]} 10... Bxf6 {[%clk 0:02:13.9]} 11. Nxe4
{[%clk 0:02:39.5]} 11... Bxa1 {[%clk 0:02:13.3]} 12. Qxa1 {[%clk 0:02:40.1]}
12... O-O {[%clk 0:02:11.7]} 13. d6 {[%clk 0:02:40.5]} 13... Qd8 {[%clk
0:02:11.4]} 14. N2g3 {[%clk 0:02:34.9]} 14... c5 {[%clk 0:02:10.4]} 15. Nf5
{[%clk 0:02:32]} 15... f6 {[%clk 0:02:09.2]} 16. Ne7+ {[%clk 0:02:31.1]} 16...
Kh8 {[%clk 0:02:09.1]} 17. Bd3 {[%clk 0:02:17.4]} 17... b6 {[%clk 0:02:02.5]}
18. b5 {[%clk 0:02:14.7]} 18... Nc7 {[%clk 0:01:59.7]} 19. Nxc8 {[%clk
0:02:10.3]} 19... Rxc8 {[%clk 0:01:53.1]} 20. dxc7 {[%clk 0:02:10.5]} 20... Rxc7
{[%clk 0:01:52]} 21. Nc3 {[%clk 0:02:09.9]} 21... d6 {[%clk 0:01:49.2]} 22. Nd5
{[%clk 0:02:09.9]} 22... Rcf7 {[%clk 0:01:49.1]} 23. Qb1 {[%clk 0:02:06.3]}
23... f5 {[%clk 0:01:48.4]} 24. h3 {[%clk 0:02:01.7]} 24... Qh4 {[%clk
0:01:45.1]} 25. g3 {[%clk 0:01:57.4]} 25... Qh6 {[%clk 0:01:37.5]} 26. h4 {[%clk
0:01:57]} 26... Re8 {[%clk 0:01:36.3]} 27. Bxf5 {[%clk 0:01:54.5]} 27... Re5
{[%clk 0:01:34.3]} 28. Be4 {[%clk 0:01:50.9]} 28... Qh5 {[%clk 0:01:27.4]} 29.
O-O {[%clk 0:01:49]} 29... Qg4 {[%clk 0:01:24.6]} 30. Nf4 {[%clk 0:01:45.4]}
30... g5 {[%clk 0:01:21.9]} 31. hxg5 {[%clk 0:01:45]} 31... Rxg5 {[%clk
0:01:20.6]} 32. Bd5 {[%clk 0:01:41.9]} 32... Rfg7 {[%clk 0:01:13.7]} 33. Qe4
{[%clk 0:01:40.5]} 33... Re5 {[%clk 0:01:10]} 34. Qf3 {[%clk 0:01:38.4]} 34...
Qc8 {[%clk 0:01:07.1]} 35. Kg2 {[%clk 0:01:36.3]} 35... Qd8 {[%clk 0:01:00.5]}
36. Rh1 {[%clk 0:01:36.1]} 36... Re8 {[%clk 0:00:59.6]} 37. Ne6 {[%clk
0:01:35.2]} 1-0